Cogmind - Beta 13 @@@ ROGUE MODE // 2024.04.27 @ 02:41:13 Player: tartine Result: Destroyed by L-31 Rogue with Katana Performance ------------- Evolutions (2) 1000 Regions Visited (6) 1200 Robots Destroyed (53) 265 Value Destroyed (1357) 1357 Prototype IDs (3) 60 Alien Tech Used (0) 0 Bonus (101) 101 TOTAL SCORE: 3983 Bonus ------- High Alert Combat Kills 66 Follower Combat Kills 35 Cogmind --------- Core Integrity 0/550 Matter 117/300 Energy 24/100 System Corruption 2% Temperature Cool (27) Movement Hovering (50) Location -8/Storage Parts ------- > --- POWER (1) -------- (None) > --- PROPULSION (4) --- Aerolev Unit > --- UTILITY (4) ------ (None) > --- WEAPON (2) ------- Particle Cannon > --- INVENTORY (5) ---- Wheel Spread Laser Heavy Flail Peak State ------------ > --- POWER ------------ Reinforced Ion Engine > --- PROPULSION ------- Aerolev Unit Aerolev Unit Aerolev Unit Aerolev Unit > --- UTILITY ---------- Improved Heat Sink Small Storage Unit Advanced Targeting Computer > --- WEAPON ----------- Advanced EMP Blaster Advanced EMP Blaster > --- INVENTORY -------- Reinforced Ion Engine Wheel Aerolev Unit Aerolev Unit Spread Laser Particle Cannon Particle Cannon Heavy Flail [Rating: 35] Favorites ----------- Power Ion Engine Engine Ion Engine Propulsion Wheel Wheel Wheel Hover Unit Aerolev Unit Utility Small Storage Unit Device Structural Scanner Storage Small Storage Unit Processor Advanced Targeting Computer Protection Light Armor Plating Weapon Medium Laser Energy Gun Medium Laser Energy Cannon Particle Cannon Ballistic Gun Minigun Launcher Advanced EMP Blaster Impact Weapon Heavy Flail Build | -11 -10 -10 -9 -9 -8 -8 ------- Run | Yrd Mat Min Mat Min Mat Sto Slots Evolved 4 | . . . 2 . 2 . Power . | . . . . . . . Propulsion 2 | . . . . . 2 . Utility 2 | . . . 2 . . . Weapon . | . . . . . . . Parts Attached 49 | 8 4 . 10 . 13 14 Power 4 | 1 . . 2 . . 1 Engine 4 | 1 . . 2 . . 1 Core . | . . . . . . . Reactor . | . . . . . . . Propulsion 19 | 4 1 . 3 . 5 6 Treads . | . . . . . . . Leg . | . . . . . . . Wheel 13 | 4 1 . 3 . 5 . Hover 6 | . . . . . . 6 Flight . | . . . . . . . Utility 8 | 1 2 . 3 . 2 . Device 3 | . 2 . . . 1 . Storage 2 | 1 . . 1 . . . Processor 2 | . . . 1 . 1 . Hackware . | . . . . . . . Protection 1 | . . . 1 . . . Artifact . | . . . . . . . Weapon 18 | 2 1 . 2 . 6 7 Energy Gun 7 | 2 . . . . 5 . Energy Cannon 5 | . 1 . 2 . . 2 Ballistic Gun 1 | . . . . . . 1 Ballistic Cannon . | . . . . . . . Launcher 4 | . . . . . 1 3 Special Weapon . | . . . . . . . Impact Weapon 1 | . . . . . . 1 Slashing Weapon . | . . . . . . . Piercing Weapon . | . . . . . . . Special Melee Weapon . | . . . . . . . Unidentified Prototypes 3 | . . . . . 1 2 Parts Lost 26 | . 4 . 3 . 6 13 Power 2 | . 1 . . . . 1 Propulsion 9 | . 2 . . . 2 5 Utility 7 | . . . 3 . 1 3 Weapon 8 | . 1 . . . 3 4 Highest Loss Streak 9 | . 4 . 1 . 5 9 To Critical Strikes . | . . . . . . . Average Slot Usage (%) 85 | . 95 71 78 77 88 70 Engine 9 | . 12 . 9 11 9 5 Wheel 24 | . 25 14 21 22 36 12 Hover 2 | . . . . . . 15 Device 10 | . 14 28 15 . 6 3 Storage 9 | . 13 . 3 11 9 9 Processor 2 | . . . 2 . 8 7 Protection 1 | . . . 3 11 2 . Energy Gun 13 | . 26 14 2 . 13 2 Energy Cannon 6 | . 1 14 18 22 2 . Launcher 1 | . . . . . 1 10 Naked Turns . | . . . . . . . Heaviest Build 28 | 14 15 7 27 26 26 28 Greatest Support 46 | 32 20 3 20 20 46 46 Greatest Overweight (x) 3 | . 3 2 1 1 . 3 Average Overweight (x) . | . . 2 . 1 . . Largest Inventory Capacity 8 | 8 8 5 8 8 8 8 Average Capacity 7 | 7 7 5 5 8 8 7 Most Carried 8 | 5 6 5 5 5 8 8 Average Carried 5 | 1 5 5 3 4 6 7 Final Capacity 8 | 8 5 5 8 8 8 5 Final Carried 8 | 5 5 5 4 5 8 3 Class Distribution -------------------- 71% | Mutant 28% | Scavenger-Mutant Dominant Class ---------------- Mutant | -10/Materials Mutant | -10/Mines Scavenger-Mutant | -9/Materials Mutant | -9/Mines Scavenger-Mutant | -8/Materials Mutant | -8/Storage Resources | -11 -10 -10 -9 -9 -8 -8 ----------- Run | Yrd Mat Min Mat Min Mat Sto Matter Collected 774 | 274 36 . 78 21 200 165 Remotely . | . . . . . . . Salvage Created 1654 | 139 208 . 247 82 704 274 Parts 105 | 16 10 . 13 3 46 17 Haulers Intercepted . | . . . . . . . Recyclers Shooed 1 | . . . . . 1 . Parts Field Recycled . | . . . . . . . Retrieved Matter . | . . . . . . . Parts Self-Destructed . | . . . . . . . Prevented . | . . . . . . . Kills | -11 -10 -10 -9 -9 -8 -8 ------- Run | Yrd Mat Min Mat Min Mat Sto Combat Hostiles Destroyed 28 | . 5 . 4 2 9 8 Guns 9 | . 4 . . . 5 . Cannons 7 | . . . 4 2 . 1 AOE 10 | . 1 . . . 3 6 Classes Destroyed 11 | 2 1 . 2 . 5 1 Worker 7 | 2 1 . . . 3 1 Builder 7 | . . . 2 . 3 2 Tunneler 5 | 5 . . . . . . Recycler 3 | . . . . . 3 . Mechanic 1 | . . . . . 1 . Operator 1 | . . . . . 1 . Watcher 1 | . . . . . 1 . Swarmer 3 | . . . . . 3 . Grunt 17 | . 5 . 3 1 6 2 Brawler 2 | . . . 1 1 . . Sentry 6 | . . . . . . 6 Best Kill Streak 14 | 6 3 . 4 2 14 5 Combat Bots Only 6 | . 3 . 3 2 6 4 Max Kills in Single Turn 2 | 2 1 . 1 1 2 1 Gunslinging . | . . . . . . . Exploded 2 | . 1 . . . 2 1 Melee . | . . . . . . . Uniques/NPCs Destroyed . | . . . . . . . Combat | -11 -10 -10 -9 -9 -8 -8 -------- Run | Yrd Mat Min Mat Min Mat Sto Hostile Shots Fired 222 | . 36 . 43 3 47 93 Missed 58 | . 8 . 16 . 12 22 Damage Taken 3045 | . 375 . 391 31 718 1530 Core 765 | . 72 . 118 . 190 385 Absorbed by Shields . | . . . . . . . Core Remaining (%) 80 | 100 . 71 . 70 . . Volleys Fired 112 | 12 28 . 14 3 27 28 Largest 2 | 2 2 . 2 2 2 2 Hottest 136 | 100 100 . 136 136 110 136 Shots Fired 195 | 24 55 . 28 6 47 35 Gun 129 | 24 55 . 8 . 40 2 Cannon 29 | . . . 20 6 . 3 Launcher 37 | . . . . . 7 30 Special . | . . . . . . . Kinetic . | . . . . . . . Thermal 121 | 24 55 . 28 6 5 3 Explosive 26 | . . . . . 7 19 Electromagnetic 48 | . . . . . 35 13 Robot Hit Streak 21 | 6 12 . 15 9 21 8 Robot Miss Streak 4 | 1 3 . 2 . 4 2 Penetration Max . | . . . . . . . Secondary Targets . | . . . . . . . Shots Hit Robots 131 | 16 30 . 20 4 36 25 Core Hits 97 | 8 11 . 6 2 43 27 Critical Kills . | . . . . . . . Critical Parts Destroyed 2 | . . . . . . 2 Critical Strikes 7 | 2 2 . 1 . . 2 Burn 5 | 2 2 . 1 . . . Smash 2 | . . . . . . 2 Melee Attacks 11 | . . . . . . 11 Impact 11 | . . . . . . 11 Slashing . | . . . . . . . Piercing . | . . . . . . . Sneak Attacks . | . . . . . . . Combat Hostiles . | . . . . . . . Follow-up Attacks . | . . . . . . . Damage Inflicted 3904 | 239 558 . 345 83 1265 1414 Guns 1260 | 239 382 . 76 . 553 10 Cannons 392 | . . . 269 83 . 40 Explosions 2036 | . 176 . . . 686 1174 Melee 159 | . . . . . . 159 Ramming 57 | . . . . . 26 31 Kinetic . | . . . . . . . Thermal 1321 | 239 382 . 345 83 204 68 Explosive 1637 | . 176 . . . 548 913 Electromagnetic 730 | . . . . . 487 243 Impact 159 | . . . . . . 159 Slashing . | . . . . . . . Piercing . | . . . . . . . Highest Corruption 4 | . . . 4 4 . 2 Average Corruption 2 | . . . 4 4 . 1 Corruption Purged . | . . . . . . . Corruption Blocked . | . . . . . . . Effects 6 | . . . 1 4 . 1 Message Errors 2 | . . . 1 1 . . Matter Fused 3 | . . . . 2 . 1 Energy Discharges 1 | . . . . 1 . . Overload Shots . | . . . . . . . Overflow Damage 148 | . 14 . 11 . 24 99 Projectiles 19 | . . . 11 . . 8 Explosions 39 | . 14 . . . 24 1 Melee 90 | . . . . . . 90 Knockbacks . | . . . . . . . Impact . | . . . . . . . Kinetic . | . . . . . . . Secondary . | . . . . . . . Self-Inflicted Damage 521 | . 34 . . . 194 293 Shots 17 | . 1 . . . 5 11 Rammed 4 | . . . . . 2 2 Targets Rammed 4 | . . . . . 2 2 Kicked . | . . . . . . . Crushed . | . . . . . . . Highest Temperature 494 | 156 494 . 147 261 333 45 Average Temperature 119 | 57 184 . 36 132 147 16 Received Heat Transfer 1056 | . 198 . 138 18 243 459 Effects 4 | . 3 . . . 1 . Shutdowns 1 | . . . . . 1 . Energy Bleed 2 | . 2 . . . . . Short Circuit 1 | . 1 . . . . . Siege Activations . | . . . . . . . Robots Corrupted 1 | . . . . . 1 . Combat Hostiles 1 | . . . . . 1 . Parts Fried 5 | . . . . . 1 4 Impact Corruptions 3 | . . . . . . 3 Robots Melted . | . . . . . . . Combat Hostiles . | . . . . . . . Parts Melted 6 | 2 4 . . . . . Heat Transferred 3375 | 851 1258 . 814 148 180 124 Parts Sabotaged . | . . . . . . . Parts Stolen . | . . . . . . . Parts Stripped . | . . . . . . . Power Chain Reactions 5 | . . . . . 2 3 Alert | -11 -10 -10 -9 -9 -8 -8 ------- Run | Yrd Mat Min Mat Min Mat Sto Peak Influence 518 | 35 180 70 234 171 436 518 Initial 183 | . 22 70 27 91 66 183 Average 147 | 12 71 70 149 142 233 330 Maximum Alert Level 2 | . . . 1 . 2 2 Low Security (%) 75 | 100 100 100 64 100 48 31 Level 1 18 | . . . 35 . 39 42 Level 2 5 | . . . . . 12 25 Level 3 . | . . . . . . . Level 4 . | . . . . . . . Level 5 . | . . . . . . . High Security . | . . . . . . . Max Security . | . . . . . . . Squads Dispatched 5 | . 1 . . . 2 2 Investigation 1 | . 1 . . . . . Extermination . | . . . . . . . Reinforcement 2 | . . . . . 2 . Assault 2 | . . . . . . 2 Garrison . | . . . . . . . Intercept . | . . . . . . . Searches Triggered . | . . . . . . . Construction Impeded 1 | . . . . . 1 . Haulers Reinforced . | . . . . . . . Active Scanning Responses . | . . . . . . . Cargo Convoy Interrupts . | . . . . . . . Stealth | -11 -10 -10 -9 -9 -8 -8 --------- Run | Yrd Mat Min Mat Min Mat Sto Distress Signals . | . . . . . . . Communications Jammed . | . . . . . . . Distress Signals . | . . . . . . . Times Spotted 54 | . 10 . 9 3 19 13 Peak Tracking Total 6 | . 4 . 4 2 6 5 Tactical Retreats 8 | . 1 . 3 1 2 1 Traps | -11 -10 -10 -9 -9 -8 -8 ------- Run | Yrd Mat Min Mat Min Mat Sto Traps Triggered 4 | . 1 . . . . 3 Indirectly 2 | . . . . . . 2 Trap Hack Attempts . | . . . . . . . Triggered . | . . . . . . . Disarmed . | . . . . . . . Reprogrammed . | . . . . . . . Reused . | . . . . . . . Traps Extracted . | . . . . . . . Installed . | . . . . . . . Triggered 1 | . . . . . . 1 Machines | -11 -10 -10 -9 -9 -8 -8 ---------- Run | Yrd Mat Min Mat Min Mat Sto Machines Disabled 11 | . 2 . . . 4 5 Max in Single Turn 2 | . 1 . . . 2 2 Machines Repaired . | . . . . . . . Machines Dismantled . | . . . . . . . Machines Sabotaged . | . . . . . . . Overloaded Fab Kills . | . . . . . . . Hacking | -11 -10 -10 -9 -9 -8 -8 --------- Run | Yrd Mat Min Mat Min Mat Sto Machines Accessed 6 | . 2 . 2 . 1 1 Terminals 6 | . 2 . 2 . 1 1 Fabricators . | . . . . . . . Repair Stations . | . . . . . . . Recycling Units . | . . . . . . . Scanalyzers . | . . . . . . . Garrison Access . | . . . . . . . Total Hacks 8 | . 2 . 4 . 1 1 Successful 6 | . 2 . 2 . 1 1 Failed 2 | . . . 2 . . . Catastrophic 1 | . . . 1 . . . Database Lockouts . | . . . . . . . Manual 3 | . . . 1 . 2 . Terminals 8 | . 2 . 4 . 1 1 Fabricators . | . . . . . . . Repair Stations . | . . . . . . . Recycling Units . | . . . . . . . Scanalyzers . | . . . . . . . Garrison Access . | . . . . . . . Terminal Hacks 6 | . 2 . 2 . 1 1 Record 1 | . . . 1 . . . Open Door 1 | . . . . . . 1 Branch Access Points 1 | . . . 1 . . . Alert Level 2 | . 1 . . . 1 . Patrol Status 1 | . 1 . . . . . Fabricator Hacks . | . . . . . . . Repair Station Hacks . | . . . . . . . Recycling Unit Hacks . | . . . . . . . Scanalyzer . | . . . . . . . Garrison Access Hacks . | . . . . . . . Unauthorized Hacks . | . . . . . . . Terminals . | . . . . . . . Fabricators . | . . . . . . . Repair Stations . | . . . . . . . Recycling Units . | . . . . . . . Scanalyzers . | . . . . . . . Garrison Access . | . . . . . . . Data Cores Recovered . | . . . . . . . Used . | . . . . . . . Hacking Detections 4 | . 1 . 2 . 1 . Full Trace Events 1 | . . . 1 . . . Feedback Events . | . . . . . . . Feedback Blocked . | . . . . . . . Robot Schematics Acquired . | . . . . . . . Robots Built . | . . . . . . . Authchips . | . . . . . . . Time . | . . . . . . . Total Robot Build Rating . | . . . . . . . Part Schematics Acquired . | . . . . . . . Parts Built . | . . . . . . . Authchips . | . . . . . . . Time . | . . . . . . . Total Part Build Rating . | . . . . . . . Parts Repaired . | . . . . . . . Time . | . . . . . . . Parts Recycled . | . . . . . . . Recycled Matter . | . . . . . . . Retrieved Matter . | . . . . . . . Retrieved Components . | . . . . . . . Parts Scanalyzed . | . . . . . . . Part Schematics Acquired . | . . . . . . . Parts Damaged . | . . . . . . . Bothacking | -11 -10 -10 -9 -9 -8 -8 ------------ Run | Yrd Mat Min Mat Min Mat Sto Used RIF Installer . | . . . . . . . Robots Hacked . | . . . . . . . Non-combat . | . . . . . . . Combat . | . . . . . . . Robot Hacks Applied . | . . . . . . . Relay Couplers Released . | . . . . . . . Fabnet Peak Effective % . | . . . . . . . Robots Rewired . | . . . . . . . Allies Hacked . | . . . . . . . Hacks Repelled . | . . . . . . . Allies | -11 -10 -10 -9 -9 -8 -8 -------- Run | Yrd Mat Min Mat Min Mat Sto Total Allies 2 | . . . . . . 2 Largest Group 2 | . . . . . . 2 Highest-Rated Group 62 | . . . . . . 62 Highest-Rated Ally 31 | . . . . . . 31 Total Orders . | . . . . . . . Ally Attacks 7 | . . . . . . 7 Total Damage 64 | . . . . . . 64 Kills 1 | . . . . . . 1 Allies Corrupted . | . . . . . . . Allies Melted . | . . . . . . . Intel | -11 -10 -10 -9 -9 -8 -8 ------- Run | Yrd Mat Min Mat Min Mat Sto Robot Analysis Total . | . . . . . . . Derelict Logs Recovered 1 | . . . . 1 . . Drone Launches . | . . . . . . . Drone Recoveries . | . . . . . . . Exploration | -11 -10 -10 -9 -9 -8 -8 ------------- Run | Yrd Mat Min Mat Min Mat Sto Turns Passed 1718 | 115 649 23 315 118 243 255 Spaces Moved 1036 | 63 208 16 256 113 167 213 Core 52 | 2 34 16 . . . . Treads . | . . . . . . . Legs . | . . . . . . . Wheels 859 | 61 174 . 256 113 167 88 Hover 125 | . . . . . . 125 Flight . | . . . . . . . Fastest Speed 38 | 50 80 150 80 95 80 38 Average Speed 83 | 94 93 150 85 95 81 60 Slowest Speed 230 | 100 200 150 95 95 85 230 Overloaded Moves . | . . . . . . . Propulsion Burnouts . | . . . . . . . Robots Hopped . | . . . . . . . Cave-ins Triggered . | . . . . . . . Exploration Rate (%) 25 | 3 35 12 29 27 25 45 Regions Visited 6 Branch Regions 3 Pre-discovered Areas . | . . . . . . . Known Exits Taken 1 | . . . 1 . . . Unknown Exits Taken 5 | 1 1 1 . 1 1 . Scrap Searched 1 | . . . . 1 . . Spaces Dug . | . . . . . . . Terrain Destroyed 152 | . 51 . . . 29 72 Melee . | . . . . . . . Projectile . | . . . . . . . AOE 152 | . 51 . . . 29 72 Terrain Rammed . | . . . . . . . Walls Destroyed . | . . . . . . . Machines Disabled . | . . . . . . . Actions | -11 -10 -10 -9 -9 -8 -8 --------- Run | Yrd Mat Min Mat Min Mat Sto Total 1668 | 92 606 15 321 118 226 290 Wait 421 | . 365 . 38 . 7 11 Move 1030 | 62 207 15 255 112 166 213 Hop . | . . . . . . . Pick Up 23 | 8 2 . 1 2 8 2 Fast Attach 23 | 5 2 . 4 . 4 8 Attach 20 | 3 1 . 4 . 7 5 Detach 2 | . . . . . 2 . Swap 6 | . 1 . 2 . 2 1 Drop 16 | 2 . . 3 1 1 9 Fire 112 | 12 28 . 14 3 27 28 Melee 11 | . . . . . . 11 Ram 4 | . . . . . 2 2 Kick . | . . . . . . . Crush . | . . . . . . . Escape Stasis . | . . . . . . . Rewire . | . . . . . . . Trap . | . . . . . . . Miscellaneous . | . . . . . . . Route ------- -11/Scrapyard -10/Materials -10/Mines -9/Materials -9/Mines -8/Materials -8/Storage History --------- Turn | Location | Event 25 | -11/Scrapyard | Discovered new exit (range 15) 116 | -11/Scrapyard | Entered Materials 305 | -10/Materials | Build established: Mutant 736 | -10/Materials | Lost 4 parts (1p2n1w) 743 | -10/Materials | Discovered new exit (range 16) 765 | -10/Materials | Entered Mines 776 | -10/Mines | Discovered new exit (range 8) 788 | -10/Mines | Entered Materials 788 | -9/Materials | Evolved 2 slots: Utility x2 1025 | -9/Materials | Identified exit to Mines 1103 | -9/Materials | Entered Mines 1156 | -9/Mines | Learned 4 Materials zone layouts 1208 | -9/Mines | Received a Rocket Launcher from a helpful Derelict 1209 | -9/Mines | Discovered new exit (range 14) 1221 | -9/Mines | Entered Materials 1221 | -8/Materials | Evolved 2 slots: Propulsion x2 1407 | -8/Materials | Lost 5 parts (2n3w) 1451 | -8/Materials | Discovered new exit (range 15) 1464 | -8/Materials | Entered Storage 1492 | -8/Storage | Met a pair of Derelict thieves 1520 | -8/Storage | Build established: Scavenger-Mutant 1620 | -8/Storage | Core integrity fell below 50% 1692 | -8/Storage | Core integrity fell below 20% 1710 | -8/Storage | Lost 9 parts (1p4n1u3w) 1719 | -8/Storage | Destroyed by L-31 Rogue with Katana Last Messages --------------- crushing effect. 01693_ Y-45 Defender system terminally corrupted. 01693_ Lgt. Treads fried. 01693_ Imp. Ion Engine fried. 01695_ Acquired 46 matter. 01696_ K-01 Serf collects debris. 01699_ M-28 Smith repairs L-31 Rogue. 01702_ K-01 Serf collects debris. 01703_ M-28 Smith repairs Imp. Aluminum Leg. 01706_ K-01 Serf collects debris. 01711_ Sml. Storage Unit destroyed. 01714_ K-01 Serf collects debris. 01715_ Destroyed Aluminum Leg. 01717_ Rnf. Ion Engine severed. 01718_ K-01 Serf collects debris. 01719_ Aerolev Unit destroyed. 01719_ Critical hit (Burn: +37). 01719_ G-47 Trooper destroyed. 01719_ Particle Cannon destroyed. Map ----- +----------------------------------------------------+ | ????????????????????????????????? | | ????????????????????????????????? | | ????????????????????????????????? | | ????????????????????????????????? | | ????????????????????????????????? | | ????????????????????????????????? | | ????????????????????????????????? | | ????????????????????????????????? | | ????????????????????????????????? | | ????????????????????????????????? | | ????????????????????????????????? | | ????????????????????????????????? | | ????????????????????????????????? | | ????????????????????????????????? | | ????????????????????????????????? | | ????????#####???????????????????? | | ???????? ????????????????????? | | ???????? ????????????????????? | | ???????? ?????????????????????? | | ????????# ?????????????????????? | | ??????###+##????????????????????? | | ??????# ########?????????????? | | ??????# #?????????????? | | ??????# #?????????????? | | ??????# l ##### #?????????????? | | ??????##@###???# #?????????????? | | ???????#/#?????# #?????????????? | | ???????a% ?????# ####??????????? | | ??????? ?????# +??????????? | | ?????? ????# ####??????????? | | ??????k! ????# ## ??????????? | | ?????# ??## ## """????????? | | ?????# ??# # ""???????? | | ?????# ! ! ?+ # "???????? | | ?????# ?# + [ "???????? | | ?????# ! # # "???#???? | | ?????########### # """ #???? | | ?????????? ?# # #???? | | ??????????""" + # #???? | | ??????????""" #???? | | ??????????""" # # ###+ | | ??????????""" | | ??????????""" | | ????? #+## | | ????????####+## | | ??????????## # # | | ??????????# =% # | | ??????????+ ] # | | ??????????# # | | ??????????# #### ## | +----------------------------------------------------+ Best States ------------- Heat Dissipation 45 Energy Generation 12 Energy Capacity 265 Matter Stores 300 Matter Capacity 300 Sight Range 16 Terrain Scan Density 10 Armor Coverage 150 Evasion (%) 57 Targeting Accuracy 8 Salvage Targeting 1 Item Schematics ----------------- None Robot Schematics ------------------ None Fabricated ------------ Nothing Alien Tech Used ----------------- None Achievements -------------- None Challenges ------------ None Game ------ Seed TerrabombGravitonDerivative Manual? 0 Play Time 00:19:12 Cumulative 26.5 hours Start 2024.04.27 @ 02:25:55 End 2024.04.27 @ 02:41:13 Sessions 1 Manual Loads 0 Difficulty Rogue Special Mode None Game No. 36 Rogue 36 Adventurer 0 Explorer 0 Win Type - Total 1 Types 1/0/0/0/0/0/0/0/0 Lore% 27 Gallery% 34 Achievement% 29 Wizard Run 0 Options --------- Layout 1 ASCII 0 Keyboard 0 Movement Mouse Keybinds 0 Fullscreen 1 Font 24/Smallcaps Map View 50x35 Zoom Use 0% Tactical HUD 1 Map Filters NONE Filters NONE Steam 1 RUN: a690a1a5-1516-4d66-800b-c7a312da77a2